bitfinex-derivatives/quotes_SOLF0:USTF0_20250325
["timestamp","ask_amount","ask_price","bid_price","bid_amount"]
[1742912118308,1.19618458,145.62,145.56,28.32]
[1742912118814,1.19618458,145.62,145.61,6.8668]
[1742912119009,8.458e-05,145.62,145.61,35.1868]
[1742912119213,28.42634265,145.66,145.65,6.8649]
[1742912119214,6.78132723,145.66,145.65,6.8649]
[1742912119513,6.78132723,145.66,145.65,35.1849]
[1742912119916,59.92088553,145.67,145.66,6.8644]
[1742912120212,173.31265046,145.69,145.65,35.18]
[1742912120413,52.90411058,145.69,145.68,6.8635]
[1742912120712,1.058e-05,145.69,145.68,6.8635]
[1742912120917,1.058e-05,145.69,145.68,13.7235]
[1742912121112,1.058e-05,145.69,145.65,28.32]
[1742912121312,1.058e-05,145.69,145.66,28.32]
[1742912121510,0.02578832,145.68,145.66,28.36846242]
[1742912123109,0.02578832,145.68,145.66,0.04846242]
[1742912123710,0.02578832,145.68,145.67,28.3]
[1742912123911,0.02578832,145.68,145.67,35.164]
[1742912124215,0.02578832,145.68,145.67,28.3]
[1742912124911,0.02578832,145.68,145.67,42.024]
[1742912125411,0.02578832,145.68,145.67,35.16]
[1742912125610,0.02578832,145.68,145.67,28.3]
[1742912126116,0.02578832,145.68,145.66,0.04846242]
[1742912126317,0.02578832,145.68,145.67,28.3]
[1742912126616,6.88948832,145.68,145.67,28.3]
[1742912126817,0.02578832,145.68,145.67,28.3]
[1742912127118,28.3,145.74,145.67,28.3]
[1742912127510,28.3,145.74,145.64,65.96779952]
[1742912127917,28.3,145.74,145.64,28.3]
[1742912128107,28.3,145.74,145.68,0.04367851]
[1742912128312,226.6,145.77,145.68,0.04367851]
[1742912128618,28.3,145.76,145.64,28.3]
[1742912128913,28.3,145.76,145.71,0.04856811]
[1742912129218,6.8617,145.72,145.71,0.04856811]
[1742912130019,6.8635,145.68,145.67,28.28]
[1742912130220,28.28,145.71,145.63,9.30618873]
[1742912130518,28.28,145.7,145.63,9.30618873]
[1742912130716,28.28,145.69,145.63,9.30618873]
[1742912130912,20.03413127,145.76,145.63,9.30618873]
[1742912131110,6.863,145.7,145.64,28.28]
[1742912131312,0.04737511,145.71,145.68,0.04808072]
[1742912131819,6.8631,145.69,145.68,0.04808072]
[1742912132413,6.8631,145.69,145.63,9.30618873]
[1742912132618,18.14643281,145.71,145.65,28.36161079]
[1742912133019,6.8644,145.66,145.65,28.36161079]
[1742912133518,28.28,145.68,145.57,37.70048109]
[1742912133711,240.3187,145.77,145.64,6.8652]
[1742912133913,28.28,145.76,145.64,28.28]
[1742912134124,6.8625,145.7,145.69,0.05148254]
[1742912136820,0.04754765,145.72,145.69,0.05148254]
[1742912139011,0.04754765,145.72,145.61,37.70048109]
[1742912139012,6.8653,145.65,145.61,37.70048109]
[1742912139424,28.28,145.71,145.65,28.36161079]
[1742912140121,6.8635,145.68,145.67,0.05145301]
[1742912140326,6.79526984,145.68,145.67,0.05145301]
[1742912141022,0.04764649,145.69,145.67,0.05145301]
[1742912141528,6.8612,145.73,145.69,6.8627]
[1742912141721,6.8612,145.73,145.69,35.1427]
[1742912142025,6.8609,145.74,145.7,6.8625]
[1742912142224,28.28,145.78,145.69,28.28]
[1742912142720,0.04836659,145.75,145.72,0.04685526]
[1742912142919,28.28,145.81,145.69,28.28]
[1742912143121,0.04844423,145.75,145.72,0.0501096]
[1742912143325,28.28,145.81,145.73,28.28]
[1742912143526,6.90487428,145.75,145.73,28.28]
[1742912143725,28.28,145.81,145.7,72.69355282]
[1742912143925,0.04612901,145.75,145.73,0.04820664]
[1742912144126,226.52,145.83,145.73,0.04820664]
[1742912144127,6.8599,145.76,145.73,0.04820664]
[1742912144425,0.04702918,145.75,145.7,44.41355282]
[1742912144627,6.8607,145.74,145.73,0.05042955]
[1742912145033,6.90640742,145.74,145.73,0.05042955]
[1742912145322,0.04570742,145.74,145.73,0.05042955]
[1742912145727,0.04570742,145.74,145.73,55.39745295]
[1742912146028,28.26,145.79,145.73,55.39745295]
[1742912146224,6.8607,145.74,145.73,55.39745295]
[1742912146434,6.8607,145.74,145.73,6.7463965]
[1742912146625,6.79521103,145.74,145.73,6.7463965]
[1742912147626,6.8604,145.75,145.73,6.7463965]
[1742912147835,28.26,145.79,145.73,6.7463965]
[1742912148130,6.8607,145.74,145.73,6.7463965]
[1742912148431,6.8607,145.74,145.73,0.05042955]
[1742912148633,28.26,145.79,145.73,0.05042955]
[1742912149029,6.86,145.76,145.73,0.05042955]
[1742912149230,28.26,145.82,145.72,37.60677499]
[1742912149531,6.8598,145.76,145.73,0.04550055]
[1742912149726,6.8598,145.76,145.73,130.99866266]
[1742912149933,6.8598,145.76,145.73,131.04254988]
[1742912150230,6.8594,145.77,145.73,137.90344988]
[1742912150434,20.5655,145.86,145.73,130.99866266]
[1742912150626,48.8255,145.86,145.74,0.04843251]
[1742912150820,28.51014,145.84,145.73,130.99866266]
[1742912151024,28.51014,145.84,145.78,0.0491708]
[1742912151227,6.8583,145.79,145.78,0.0491708]
[1742912152134,0.25014,145.84,145.78,0.0491708]
[1742912152834,6.8572,145.82,145.78,0.0491708]
[1742912153035,0.25014,145.84,145.78,0.0491708]
[1742912153932,0.25014,145.84,145.78,144.58234418]
[1742912154136,0.25014,145.84,145.78,137.72374418]
[1742912154337,0.25014,145.84,145.81,6.8572]
[1742912154540,0.25014,145.84,145.82,28.26]
[1742912155339,240.0816,145.96,145.82,28.26]
[1742912155340,6.8543,145.88,145.82,28.26]
[1742912155536,240.0816,145.96,145.82,28.26]
[1742912155733,28.26,145.94,145.84,0.04946882]
[1742912155939,6.8544,145.88,145.83,81.56706242]
[1742912156134,28.26,145.94,145.83,74.71096242]
[1742912156441,6.8548,145.87,145.84,0.05131813]
[1742912156637,6.8548,145.87,145.83,74.71096242]
[1742912156838,6.8548,145.87,145.84,0.04938666]
[1742912157033,6.8541,145.88,145.84,0.04938666]
[1742912157234,6.8541,145.88,145.83,81.56726242]
[1742912157434,6.8541,145.88,145.85,0.04645538]
[1742912157637,6.8541,145.88,145.86,28.24]
[1742912158239,6.8545,145.87,145.86,65.61215374]
[1742912158739,0.27577,145.92,145.86,65.61215374]
[1742912159637,6.8545,145.87,145.86,65.61215374]
[1742912159841,6.8545,145.87,145.86,37.37215374]
[1742912160443,6.8545,145.87,145.86,74.71096242]
[1742912161337,28.24,145.91,145.85,115.02270115]
[1742912161536,28.24,145.91,145.82,283.14316709]
[1742912161537,20.03413127,145.88,145.82,283.14316709]
[1742912161744,28.24,145.87,145.82,272.68326709]
[1742912161943,6.8564,145.83,145.82,272.68326709]
[1742912162444,28.24,145.9,145.82,272.68326709]
[1742912162645,0.05132364,145.84,145.82,272.68326709]
[1742912162841,28.24,145.9,145.81,37.57007663]
[1742912163046,0.04926667,145.84,145.82,0.05023431]
[1742912163248,0.27577,145.92,145.82,0.05023431]
[1742912163440,0.04987676,145.84,145.83,6.8564]
[1742912163640,0.04495688,145.88,145.86,0.04713345]
[1742912163942,0.27577,145.92,145.86,0.04713679]
[1742912164245,0.05173345,145.88,145.86,0.04713679]
[1742912164741,6.8545,145.87,145.86,0.04713679]
[1742912164944,0.05173345,145.88,145.86,0.04713679]
[1742912166350,0.05173345,145.88,145.86,6.90183679]
[1742912166549,0.05173345,145.88,145.86,0.04713679]
[1742912167249,6.8545,145.87,145.86,0.04713679]
[1742912167451,0.05173345,145.88,145.86,0.04713679]
[1742912168451,0.05173345,145.88,145.86,6.90213679]
[1742912168842,0.05173345,145.88,145.87,6.8545]
[1742912169042,0.27577,145.92,145.86,0.04713679]
[1742912169443,0.27577,145.92,145.91,6.8527]
[1742912169641,0.27577,145.92,145.91,35.0727]
[1742912170348,0.02004845,145.95,145.91,28.22]
[1742912170948,6.8518,145.93,145.91,28.22]
[1742912171250,0.02004845,145.95,145.91,28.22]
[1742912171649,28.28969624,146.02,145.91,28.22]
[1742912172340,28.28969624,146.02,145.95,0.05253845]
[1742912172545,28.28969624,146.02,145.95,28.27253845]
[1742912172848,28.28969624,146.02,145.96,6.85]
[1742912173041,28.28969624,146.02,145.95,28.27253845]
[1742912173453,28.22,146.01,145.95,0.05253845]
[1742912173644,6.8503,145.96,145.95,0.05253845]
[1742912174448,6.8523,145.92,145.89,28.22]
[1742912174747,28.22,146.0,145.89,28.22]
[1742912175248,28.22,146.0,145.91,6.8523]
[1742912175450,28.22,146.0,145.89,28.22]
[1742912175647,0.04590599,145.97,145.94,0.04878641]
[1742912175853,28.22,145.96,145.84,28.22]
[1742912176154,28.22,145.95,145.84,28.22]
[1742912176354,28.22,145.94,145.84,28.22]
[1742912176745,28.22,145.94,145.9,6.8531]
[1742912176946,28.22,146.0,145.89,28.22]
[1742912177450,48.25413127,146.0,145.81,28.22]
[1742912177650,13.6979,145.99,145.89,0.02000103]
[1742912177842,6.8524,145.92,145.89,0.02000103]
[1742912178047,28.22,145.96,145.89,0.02000103]
[1742912178243,6.8531,145.9,145.89,0.06681112]
[1742912178448,6.8531,145.9,145.89,0.02000103]
[1742912179455,0.0461811,145.91,145.83,28.22]
[1742912179656,28.22,145.93,145.83,28.22]
[1742912180156,28.22,145.93,145.84,6.8558]
[1742912180554,0.04645173,145.9,145.87,0.0487255]
[1742912180963,6.8541,145.88,145.87,0.0487255]
[1742912181159,0.04645173,145.9,145.87,0.0487255]
[1742912181462,0.04645173,145.9,145.87,28.2687255]
[1742912181762,0.04645173,145.9,145.89,6.8536]
[1742912181966,0.04645173,145.9,145.87,28.2687255]
[1742912182360,0.04645173,145.9,145.87,35.1232255]
[1742912182561,0.04645173,145.9,145.87,28.2687255]
[1742912182761,0.04645173,145.9,145.87,0.0487255]
[1742912183259,28.22,146.01,145.88,28.22]
[1742912184064,6.8489,146.0,145.88,28.22]
[1742912184467,0.05144319,145.95,145.93,0.05118435]
[1742912184667,6.8491,145.99,145.93,6.90268435]
[1742912184870,0.04981609,145.95,145.93,6.90268435]
[1742912185070,0.04981609,145.95,145.93,0.05118435]
[1742912186968,0.04981609,145.95,145.94,6.8513]
[1742912188366,226.18,146.04,145.97,6.8494]
[1742912188570,6.8483,146.01,145.92,28.22]
[1742912188765,28.2,146.03,145.92,28.22]
[1742912189168,6.8484,146.01,145.96,6.8502]
[1742912189364,28.2,146.03,145.92,28.22]
[1742912189571,226.18,146.04,145.97,0.04821686]
[1742912189766,35.046,146.06,146.0,6.8483]
[1742912189960,28.2,146.06,146.0,6.8483]
[1742912190161,28.2,146.06,146.02,0.04438396]
[1742912190366,28.2,146.05,146.02,0.04438396]
[1742912190868,28.2,146.05,145.97,6.8496]
[1742912191273,28.2,146.05,145.96,6.8502]
[1742912191465,28.2,146.05,145.93,28.2]
[1742912192067,0.05146458,146.0,145.98,0.04482966]
[1742912192267,28.2,146.05,145.98,0.04482966]
[1742912192469,0.04349917,146.0,145.98,0.04482966]
[1742912192671,28.2,146.05,145.98,0.04482966]
[1742912192869,0.04695735,146.0,145.98,0.04482966]
[1742912193073,28.2,146.05,145.98,0.04482966]
[1742912193273,0.04725283,146.0,145.84,13.7113]
[1742912193468,28.2,145.99,145.85,28.2]
[1742912193667,28.2,145.98,145.85,28.2]
[1742912194064,6.8506,145.96,145.85,28.2]
[1742912194370,28.2,145.98,145.85,28.2]
[1742912194570,0.04325355,145.92,145.91,6.8525]
[1742912194867,28.2,145.98,145.89,28.2]
[1742912195073,0.04390659,145.93,145.9,0.04689233]
[1742912195871,0.04390659,145.93,145.92,6.8522]
[1742912196474,254.28,146.01,145.92,28.2]
[1742912196869,254.28,146.01,145.93,6.8515]
[1742912197074,254.28,146.01,145.92,28.2]
[1742912197575,0.04836062,145.98,145.95,0.04732684]
[1742912198669,6.89786062,145.98,145.95,0.04732684]
[1742912198870,0.04836062,145.98,145.95,0.04732684]
[1742912199076,6.85,145.97,145.95,0.04732684]
[1742912199575,0.04836062,145.98,145.95,0.04732684]
[1742912200174,6.8503,145.96,145.95,0.04732684]
[1742912200569,0.04836062,145.98,145.95,0.04732684]
[1742912202075,6.8499,145.97,145.95,0.04732684]
[1742912202275,0.04836062,145.98,145.95,0.04732684]
[1742912202775,6.8503,145.96,145.95,0.04732684]
[1742912203174,0.04836062,145.98,145.95,0.04732684]
[1742912203476,75.43918997,146.09,145.96,28.2]
[1742912204272,6.8487,146.0,145.95,35.0505]
[1742912204671,6.8487,146.0,145.96,0.04451348]
[1742912204975,28.2,146.04,145.96,0.04451348]
[1742912205176,28.28969624,146.08,145.96,0.04451348]
[1742912205370,6.8473,146.03,145.98,6.8491]
[1742912205577,28.28969624,146.08,146.01,0.0459677]
[1742912205778,28.28969624,146.08,145.95,28.2]
[1742912206275,28.28969624,146.08,146.0,0.04391768]
[1742912206477,6.8479,146.02,146.0,0.04391768]
[1742912206678,6.8479,146.02,145.97,6.8496]
[1742912206878,6.8479,146.02,146.0,0.04740061]
[1742912207079,131.92888621,146.11,146.02,6.8475]
[1742912207388,131.92888621,146.11,145.99,28.2]
[1742912207586,6.8456,146.06,146.05,0.04642749]
[1742912207887,28.2,146.06,145.93,13.7027]
[1742912208087,28.2,146.06,145.96,28.2]
[1742912208780,103.72888621,146.11,145.96,28.2]
[1742912208985,0.04512676,146.05,146.02,0.04535075]
[1742912209175,6.8459,146.06,146.02,6.8474]
[1742912209382,216.79797494,146.13,146.02,0.04346922]
[1742912209383,0.04935196,146.05,146.02,0.04346922]
[1742912209581,28.18,146.08,146.01,28.18]
[1742912209779,0.04736759,146.05,146.02,6.8919778]
[1742912210186,6.89376759,146.05,146.02,0.0447778]
[1742912210386,0.04736759,146.05,146.02,0.0447778]
[1742912210783,0.04736759,146.05,146.02,6.8920778]
[1742912210982,0.04736759,146.05,146.02,0.0447778]
[1742912212582,6.8468,146.04,146.02,0.0447778]
[1742912213178,6.89366759,146.05,146.02,0.0447778]
[1742912213583,0.04736759,146.05,146.02,0.0447778]
[1742912213792,113.15878496,146.17,146.03,28.18]
[1742912213986,103.61918997,146.16,146.03,28.18]
[1742912214984,103.61918997,146.16,146.08,0.05145884]
[1742912215292,6.8442,146.09,146.08,0.05145884]
[1742912215491,28.28969624,146.15,146.08,0.05145884]
[1742912215684,6.8436,146.11,146.08,0.05145884]
[1742912215878,28.18,146.14,146.08,0.05145884]
[1742912216289,6.8442,146.09,146.08,0.05145884]
[1742912216691,28.18,146.14,146.08,0.05145884]
[1742912216889,6.8442,146.09,146.08,0.05145884]
[1742912217090,28.18,146.14,146.08,0.05145884]
[1742912217283,13.6791,146.19,146.08,0.05145884]
[1742912217483,103.72888621,146.22,146.08,28.18]
[1742912217685,103.72888621,146.22,146.12,0.04759516]
[1742912217882,6.8389,146.21,146.14,6.8418]
[1742912218088,103.72888621,146.22,146.16,0.05178084]
[1742912218483,6.8389,146.21,146.16,0.05178084]
[1742912218688,103.72888621,146.22,146.16,0.05178084]
[1742912219091,110.56728621,146.22,146.16,0.05178084]
[1742912219291,103.72888621,146.22,146.16,0.05178084]
[1742912219984,103.72888621,146.22,146.08,28.18]
[1742912220185,6.8419,146.15,146.08,35.0245]
[1742912220479,28.18,146.17,146.08,28.18]
[1742912220683,6.8438,146.1,146.05,28.18]
[1742912220883,28.18,146.12,146.03,28.18]
[1742912221187,0.05053101,146.09,146.06,6.88931361]
[1742912221388,0.05053101,146.09,146.06,0.04371361]
[1742912221783,254.16969624,146.27,146.07,28.16]
[1742912222091,49.44711263,146.26,146.07,28.16]
[1742912222287,48.19413127,146.26,146.07,28.16]
[1742912222796,28.28969624,146.21,146.07,28.16]
[1742912223091,56.44969624,146.21,146.15,0.05273802]
[1742912223292,6.8409,146.16,146.15,0.05273802]
[1742912224087,56.44969624,146.21,146.15,0.05273802]
[1742912224291,28.28969624,146.21,146.15,28.21273802]
[1742912224590,28.28969624,146.21,146.18,6.8398]
[1742912224888,28.28969624,146.27,146.19,28.16]
[1742912225092,28.16,146.26,146.16,35.0007]
[1742912225293,6.8377,146.23,146.22,0.05183677]
[1742912226592,28.28969624,146.27,146.22,0.05183677]
[1742912227089,6.8365,146.26,146.22,0.05183677]
[1742912227295,28.28969624,146.27,146.22,0.05183677]
[1742912227588,6.8377,146.23,146.22,0.05183677]
[1742912228392,6.8374,146.24,146.22,0.05183677]
[1742912228689,28.28969624,146.27,146.22,0.05183677]
[1742912229088,28.24002104,146.33,146.22,0.05183677]
[1742912229293,28.24002104,146.33,146.2,28.22]
[1742912229496,6.8358,146.27,146.26,0.04658007]
[1742912229705,28.24002104,146.33,146.26,0.04658007]
[1742912230089,0.02002104,146.33,146.26,0.04658007]
[1742912230290,0.02002104,146.33,146.3,6.8343]
[1742912230488,0.02002104,146.33,146.3,35.0743]
[1742912230694,0.02002104,146.33,146.3,28.28355716]
[1742912232194,0.02002104,146.33,146.3,0.04355716]
[1742912233702,0.02002104,146.33,146.31,28.2]
[1742912234802,28.24,146.43,146.31,28.2]
[1742912234999,28.28969624,146.44,146.31,28.2]
[1742912235195,28.32,146.42,146.36,0.0454206]
[1742912235394,56.60969624,146.44,146.36,0.0454206]
[1742912236000,28.32,146.44,146.36,0.0454206]
[1742912236202,6.8311,146.37,146.36,0.0454206]
[1742912236397,28.3,146.42,146.21,239.337]
[1742912236705,6.8302,146.39,146.25,20.03413127]
[1742912236905,28.34,146.43,146.3,0.0506191]
[1742912237101,28.34,146.43,146.31,28.32]
[1742912237302,20.03413127,146.45,146.35,0.04554445]
[1742912237504,28.34,146.45,146.33,28.34]
[1742912237808,28.34,146.45,146.39,0.04830711]
[1742912238008,28.34,146.45,146.34,28.34]
[1742912238201,28.34,146.45,146.41,0.04824411]
[1742912238400,28.34,146.45,146.34,28.34]
[1742912238601,28.34,146.45,146.3,28.38]
[1742912239605,0.04378204,146.39,146.36,0.04322064]
[1742912239902,28.36,146.39,146.3,28.38]
[1742912240116,0.0445506,146.39,146.3,28.38]
[1742912240411,0.04668899,146.36,146.33,6.88312587]
[1742912240598,28.36,146.43,146.34,28.36]
[1742912240804,0.04466696,146.36,146.35,28.36]
[1742912240999,28.36,146.43,146.35,28.36]
[1742912241511,13.6524,146.48,146.35,28.38001269]
[1742912241902,6.8302,146.39,146.35,28.38001269]
[1742912242098,28.42,146.47,146.35,28.38001269]
[1742912242306,28.42,146.47,146.36,0.05125261]
[1742912242506,6.8309,146.38,146.35,0.02001269]
[1742912242711,28.42,146.42,146.35,0.02001269]
[1742912243007,28.42,146.42,146.35,0.07162065]
[1742912243208,225.76,146.49,146.35,0.07162065]
[1742912243209,28.4,146.47,146.36,28.4]
[1742912243709,28.42,146.46,146.4,0.05112893]
[1742912243908,28.42,146.46,146.36,28.4]
[1742912244108,28.42,146.46,146.42,0.04606059]
[1742912244109,6.8283,146.44,146.42,0.04606059]
[1742912244407,28.42,146.46,146.42,0.04606059]
[1742912244811,6.8283,146.43,146.42,0.04606059]
[1742912245806,6.8283,146.43,146.42,6.059e-05]
[1742912247399,13.6483,146.43,146.42,6.059e-05]
[1742912247601,6.82,146.43,146.26,1.36742786]
[1742912247808,48.39413127,146.42,146.29,6.8345]
[1742912248002,48.39413127,146.42,146.26,1.36742786]
[1742912248198,6.833,146.33,146.26,1.36742786]
[1742912248402,28.32,146.34,146.22,28.34]
[1742912248605,6.8359,146.27,146.22,28.34]
[1742912249007,6.8359,146.27,146.23,0.05132983]
[1742912249304,34.1168,146.54,146.23,0.05132983]
[1742912249510,20.03413127,146.49,146.25,20.03413127]
[1742912249712,29.22,146.48,146.26,31.84236991]
[1742912249906,29.22,146.48,146.26,30.58742786]
[1742912250108,29.22,146.48,146.27,1.25481846]
[1742912250305,29.22,146.48,146.26,30.58742786]
[1742912250306,29.22,146.48,146.26,1.36742786]
[1742912250514,20.03413127,146.46,146.36,0.04916729]
[1742912250811,20.03413127,146.46,146.26,1.36742786]
[1742912251013,1.25101315,146.45,146.28,6.8349]
[1742912251211,254.74,146.44,146.27,29.24]
[1742912251508,6.8302,146.39,146.32,6.8332]
[1742912251714,29.24,146.4,146.27,29.24]
[1742912251913,29.24,146.39,146.27,29.24]
[1742912252113,29.24,146.38,146.19,239.1386]
[1742912252413,29.24,146.38,146.2,29.24]
[1742912252609,0.05229522,146.3,146.27,0.04353791]
[1742912252817,29.24,146.38,146.25,29.24]
[1742912253112,0.04356585,146.3,146.27,0.0479862]
[1742912253311,29.22,146.33,146.22,29.22]
[1742912253614,0.05021588,146.3,146.22,6.8379]
[1742912253811,0.05021588,146.3,146.19,29.26]
[1742912254011,29.22,146.32,146.18,29.26]
[1742912254207,20.03413127,146.31,146.1,29.24]
[1742912254713,0.05202187,146.22,146.19,0.0460384]
[1742912255112,29.24,146.24,146.2,6.8389]
[1742912255313,0.04914636,146.22,146.19,0.04371744]
[1742912257110,6.8391,146.2,146.13,29.24]
[1742912257314,29.24,146.24,146.13,29.24]
[1742912257510,29.24,146.24,146.07,225.52]
[1742912257713,20.03413127,146.22,146.04,36.0865]
[1742912258019,20.03413127,146.22,146.04,29.24]
[1742912258219,20.03413127,146.22,146.04,6.8462]
[1742912258414,0.04769531,146.14,146.12,0.04454416]
[1742912258720,29.24,146.15,146.04,29.24]
[1742912259018,225.56,146.17,145.99,225.56]
[1742912259019,29.24,146.14,146.03,29.24]
[1742912259218,29.24,146.14,146.02,29.24]
[1742912259518,6.8446,146.09,146.02,29.24]
[1742912259921,0.05185029,146.07,146.04,0.04708676]
[1742912262022,6.8461,146.05,146.04,0.04708676]
[1742912262222,29.14,146.05,145.98,0.03679509]
[1742912263420,0.05211038,146.03,146.0,0.0446168]
[1742912264223,6.848,146.01,146.0,0.0446168]
[1742912265023,0.05211038,146.03,145.93,29.12]
[1742912265226,29.12,146.02,145.92,29.12]
[1742912265420,6.8511,145.95,145.91,29.16751687]
[1742912265624,29.12,146.02,145.91,29.16751687]
[1742912265819,29.12,146.02,145.91,0.06751687]
[1742912266020,29.12,146.02,145.95,0.0486061]
[1742912266225,0.04531997,145.98,145.95,0.0486061]
[1742912266423,6.8508,145.96,145.95,0.0486061]
[1742912266819,0.04531997,145.98,145.95,0.0486061]
[1742912267023,6.8502,145.97,145.95,0.0486061]
[1742912267334,29.10531997,145.98,145.95,0.0486061]
[1742912268019,6.8503,145.96,145.95,0.0486061]
[1742912268216,29.10531997,145.98,145.91,0.06751687]
[1742912268628,29.06,145.98,145.91,0.06751687]
[1742912269336,0.04497653,145.96,145.93,0.04542606]
[1742912269629,6.8513,145.94,145.93,0.04542606]
[1742912269829,0.04497653,145.96,145.91,0.06751687]
[1742912270231,6.854,145.89,145.84,28.98]
[1742912270529,28.98,145.94,145.83,28.98]
[1742912270724,28.96,145.93,145.83,28.98]
[1742912270931,0.0495028,145.9,145.87,0.04514316]
[1742912271330,6.8541,145.88,145.87,0.04514316]
[1742912271728,0.0495028,145.9,145.87,0.04514316]
[1742912272329,6.8541,145.88,145.87,0.04514316]
[1742912272530,0.0495028,145.9,145.87,0.04514316]
[1742912272935,6.9030028,145.9,145.87,0.04514316]
[1742912273126,0.0495028,145.9,145.87,0.04514316]
[1742912273927,6.8541,145.88,145.87,0.04514316]
[1742912275431,0.0495028,145.9,145.87,0.04514316]
[1742912276334,6.8537,145.89,145.87,0.04514316]
[1742912276534,0.0495028,145.9,145.87,0.04514316]
[1742912278536,0.0495028,145.9,145.88,28.86]
[1742912279540,0.0495028,145.9,145.87,0.04514316]
[1742912280041,0.0495028,145.9,145.87,6.89954316]
[1742912280242,0.0495028,145.9,145.87,0.04514316]
[1742912280433,6.8511,145.95,145.87,0.04514316]
[1742912280629,226.04,145.98,145.85,28.82]
[1742912281035,28.86,145.97,145.8,0.12391934]
[1742912281236,28.86,145.97,145.8,29.00391934]
[1742912281437,6.8537,145.89,145.84,6.8557]
[1742912281639,0.04564351,145.9,145.87,0.04802611]
[1742912281837,28.90564351,145.9,145.8,0.12391934]
[1742912282041,28.9069892,145.9,145.8,0.12391934]
[1742912282242,28.86,145.9,145.8,0.12391934]
[1742912282645,6.8546,145.87,145.82,6.8568]
[1742912282847,28.86,145.9,145.82,28.84]
[1742912283340,0.05120803,145.87,145.85,0.04627851]
[1742912283747,28.84,145.93,145.82,28.84]
[1742912283951,0.05009335,145.87,145.85,0.04412708]
[1742912284249,28.84,145.93,145.85,0.04412708]
[1742912284446,6.855,145.86,145.85,0.04412708]
[1742912286041,0.04491032,145.87,145.85,0.04412708]
[1742912286247,28.76,145.96,145.86,28.76]
[1742912286547,28.76,145.97,145.86,28.76]
[1742912286937,226.04,145.98,145.86,28.76]
[1742912287249,13.7009,145.96,145.85,28.86]
[1742912287544,0.04325044,145.93,145.91,2.609e-05]
[1742912287744,28.86,145.92,145.8,0.12391934]
[1742912288050,28.86,145.92,145.81,28.86]
[1742912289047,0.04652856,145.88,145.81,28.86]
[1742912289252,0.04652856,145.88,145.85,0.04920661]
[1742912289546,0.04652856,145.88,145.8,0.12391934]
[1742912290751,0.04652856,145.88,145.83,0.0442412]
[1742912290946,28.80652856,145.88,145.83,4.12e-05]
[1742912291347,6.856,145.84,145.83,4.12e-05]
[1742912291553,28.78,145.84,145.8,0.12391934]
[1742912291749,42.492,145.84,145.7,6.8623]
[1742912291946,48.65608312,145.84,145.62,226.18]
[1742912292149,1.25494253,145.83,145.66,28.78]
[1742912292354,6.8626,145.7,145.66,35.6441]
[1742912292550,28.78,145.76,145.66,28.78]
[1742912292747,0.05014819,145.69,145.67,6.91506768]
[1742912292951,6.8626,145.7,145.67,0.05116768]
[1742912293155,0.04802593,145.69,145.66,28.78]
[1742912293348,6.8634,145.69,145.67,0.04706436]
[1742912293549,6.913221,145.69,145.67,0.04706436]
[1742912294356,6.8635,145.68,145.67,0.04706436]
[1742912296354,6.8635,145.68,145.56,226.22]
[1742912296355,6.8644,145.66,145.65,6.11e-05]
[1742912299361,6.864,145.67,145.65,6.11e-05]
[1742912299556,28.7,145.68,145.65,6.11e-05]
[1742912299760,6.8643,145.67,145.65,6.11e-05]
[1742912300058,28.7,145.68,145.65,6.11e-05]
[1742912300657,0.049821,145.69,145.65,6.11e-05]
[1742912300869,0.049821,145.69,145.65,28.6800611]
[1742912301362,0.049821,145.69,145.65,6.11e-05]
[1742912302257,6.8636,145.68,145.65,6.11e-05]
[1742912302559,0.049821,145.69,145.65,6.11e-05]
[1742912302755,0.049821,145.69,145.66,6.8644]
[1742912302955,0.049821,145.69,145.65,28.6800611]
[1742912303362,6.913021,145.69,145.65,35.5446611]
[1742912303559,0.049821,145.69,145.65,28.6800611]